lending/lending_fUSD_20240512
["ID","MTS","AMOUNT","RATE_DAILY","PERIOD"]
[326853683,1715514632809,-150.0,0.00010532,2]
[326853684,1715514632819,-289.59,0.00010533,2]
[326853685,1715514632828,-1136.33,0.00010573,2]
[326853686,1715514632838,-2854.68,0.00010573,2]
[326853687,1715514632848,-250.0,0.00010587,2]
[326853688,1715514632857,-732.42,0.00010751,2]
[326853689,1715514632866,-250.0,0.00010808,2]
[326853691,1715514632876,-404.83,0.00010851,2]
[326853693,1715514632885,-391.79,0.00010889,2]
[326853695,1715514632895,-87131.67739463,0.000109,2]
[326853697,1715514632904,-150.0,0.00010959,2]
[326853699,1715514632913,-4000.0,0.00010959,3]
[326853700,1715514632923,-181.34,0.00011008,2]
[326853701,1715514632933,-608.21,0.00011642,2]
[326853702,1715514632942,-166.19,0.0001179,2]
[326853703,1715514632952,-138315.35259106,0.000118,2]
[326853704,1715514632961,-363.06,0.000118,2]
[326853705,1715514632970,-174.48,0.00011819,2]
[326853706,1715514632980,-868.75,0.00011841,2]
[326853707,1715514632990,-188.74,0.00011841,2]
[326853708,1715514632999,-165.44,0.0001186,2]
[326853709,1715514633009,-8525.4206,0.00011869,2]
[326853710,1715514633019,-180.28124225,0.00011969,2]
[326853711,1715514633028,-4309.18188136,0.00011969,2]
[326853712,1715514633038,-1029.3716901,0.00012,2]
[326853713,1715514633047,-868.75,0.00012041,2]
[326853714,1715514633056,-415.08,0.00012041,2]
[326853715,1715514633066,-415.08,0.00012041,2]
[326853716,1715514633075,-868.75,0.00012041,2]
[326853717,1715514633084,-946.86,0.00012041,2]
[326853718,1715514633093,-868.75,0.00012041,2]
[326853719,1715514633102,-500.0,0.000121,4]
[326853720,1715514633111,-1572.01,0.00012147,6]
[326853721,1715514633120,-127080.31,0.00012147,6]
[326853722,1715514633129,-5595.69,0.00012147,6]
[326853723,1715514633138,-62401.32,0.00012147,6]
[326853724,1715514633146,-150.47,0.00012192,2]
[326853725,1715514633155,-1100.0,0.000122,4]
[326853726,1715514633164,-391.79,0.0001225,2]
[326853727,1715514633173,-1600.0,0.000123,4]
[326853728,1715514633182,-3503.24646015,0.00012381,2]
[326853729,1715514633191,-2200.0,0.000124,4]
[326853730,1715514633200,-2700.0,0.000125,4]
[326853731,1715514633208,-12645.13966873,0.000125,2]
[326853732,1715514633217,-1563.06983317,0.00012515,2]
[326853733,1715514633226,-500.0,0.000126,4]
[326853734,1715514633235,-1000.0,0.000126,2]
[326853735,1715514633244,-500.0,0.00012602,2]
[326853736,1715514633254,-3000.0,0.00012602,2]
[326853737,1715514633262,-2000.0,0.00012659,2]
[326853738,1715514633271,-200.0,0.00012659,2]
[326853739,1715514633280,-2000.0,0.00012659,2]
[326853740,1715514633289,-200.0,0.00012659,2]
[326853741,1715514633298,-500.0,0.000127,4]
[326853742,1715514633307,-169.7463935,0.000127,2]
[326853743,1715514633316,-1000.0,0.000127,2]
[326853744,1715514633325,-330.90564353,0.000127,2]
[326853745,1715514633334,-330.90564352,0.00012729,2]
[326853746,1715514633342,-330.90564352,0.00012758,2]
[326853747,1715514633351,-800.0,0.00012767,2]
[326853748,1715514633360,-800.0,0.00012767,2]
[326853749,1715514633369,-800.0,0.00012767,2]
[326853750,1715514633378,-800.0,0.00012767,2]
[326853751,1715514633387,-2000.0,0.00012786,2]
[326853752,1715514633395,-200.0,0.00012786,2]
[326853753,1715514633404,-2000.0,0.00012786,2]
[326853754,1715514633412,-200.0,0.00012786,2]
[326853755,1715514633421,-330.90564352,0.00012787,2]
[326853756,1715514633430,-166.19,0.0001279,2]
[326853757,1715514633439,-4860.8733,0.00012798,2]
[326853758,1715514633447,-1000.0,0.00012799,2]
[326853759,1715514633456,-500.0,0.00012799,2]
[326853760,1715514633465,-4466.5,0.00012799,2]
[326853761,1715514633474,-500.0,0.00012799,2]
[326853762,1715514633483,-500.0,0.00012799,2]
[326853763,1715514633491,-197.56004175,0.00012799,2]
[326853764,1715514633501,-501.48143259,0.00012799,2]
[326853765,1715514633510,-458.7701,0.000128,2]
[326853766,1715514633518,-67772.62235673,0.000128,2]
[326853767,1715514633531,-32227.37764327,0.000128,2]
[326853768,1715514633540,-500.0,0.000128,4]
[326853769,1715514633549,-330.90564352,0.00012816,2]
[326853770,1715514633558,-208.3518088,0.00012836,2]
[326853771,1715514633567,-1971.19289055,0.00012849,2]
[326853772,1715514633576,-170.97519332,0.00012849,2]
[326853773,1715514633585,-800.0,0.00012849,2]
[326853774,1715514633594,-175.63691096,0.0001285,2]
[326853775,1715514633604,-1971.19289055,0.00012851,2]
[326853776,1715514633613,-1971.19289055,0.00012854,2]
[326853777,1715514633622,-1971.19289055,0.00012856,2]
[326853778,1715514633631,-1971.19289055,0.00012858,2]
[326853779,1715514633639,-1971.19289055,0.00012861,2]
[326853780,1715514633648,-1971.19289055,0.00012863,2]
[326853781,1715514633658,-1971.19289055,0.00012866,2]
[326853782,1715514633672,-1971.19289055,0.00012868,2]
[326853783,1715514633681,-1971.19289055,0.0001287,2]
[326853784,1715514633690,-197.56004175,0.00012872,2]
[326853785,1715514633699,-208.3518088,0.00012872,2]
[326853786,1715514633709,-1971.19289055,0.00012873,2]
[326853787,1715514633718,-1971.19289055,0.00012875,2]
[326853788,1715514633727,-800.0,0.00012877,2]
[326853789,1715514633737,-800.0,0.00012877,2]
[326853790,1715514633745,-800.0,0.00012877,2]
[326853791,1715514633755,-166.19,0.00012885,2]
[326853792,1715514633764,-166.19,0.00012887,2]
[326853793,1715514633773,-166.19,0.00012888,2]
[326853794,1715514633782,-166.19,0.00012888,2]
[326853795,1715514633790,-427.79115464,0.0001289,2]
[326853796,1715514633799,-662.93,0.00012895,2]
[326853797,1715514633809,-662.93,0.00012895,3]
[326853798,1715514633817,-2795.59,0.00012895,2]
[326853799,1715514633826,-2795.59,0.00012895,3]
[326853800,1715514633835,-3205.22,0.00012895,2]
[326853801,1715514633844,-3205.22,0.00012895,3]
[326853802,1715514633852,-3113.48,0.00012895,2]
[326853803,1715514633861,-3113.48,0.00012895,3]
[326853804,1715514633870,-500.0,0.00012895,2]
[326853805,1715514633879,-500.0,0.00012895,3]
[326853806,1715514633889,-500.0,0.00012895,2]
[326853807,1715514633897,-500.0,0.00012895,3]
[326853808,1715514633906,-8762.33,0.00012895,2]
[326853809,1715514633915,-8762.33,0.00012895,3]
[326853810,1715514633924,-4440.83,0.00012895,2]
[326853811,1715514633933,-4440.83,0.00012895,3]
[326853812,1715514633941,-6008.3,0.00012895,2]
[326853813,1715514633950,-6008.3,0.00012895,3]
[326853814,1715514633959,-2324.64,0.00012895,2]
[326853815,1715514633968,-2324.64,0.00012895,3]
[326853816,1715514633977,-2694.38,0.00012895,2]
[326853817,1715514633986,-2694.38,0.00012895,3]
[326853818,1715514633994,-11575.48,0.00012895,2]
[326853819,1715514634005,-11575.48,0.00012895,3]
[326853820,1715514634014,-2140.04,0.00012895,2]
[326853821,1715514634022,-2140.04,0.00012895,3]
[326853822,1715514634031,-4725.88,0.00012895,2]
[326853823,1715514634040,-4725.88,0.00012895,3]
[326853824,1715514634049,-1259.64,0.00012895,2]
[326853825,1715514634058,-1259.64,0.00012895,3]
[326853826,1715514634067,-9552.49,0.00012895,2]
[326853827,1715514634075,-9552.49,0.00012895,3]
[326853828,1715514634084,-2449.73,0.00012895,2]
[326853829,1715514634093,-2449.73,0.00012895,3]
[326853830,1715514634102,-5945.88,0.00012895,2]
[326853831,1715514634111,-5945.88,0.00012895,3]
[326853832,1715514634119,-6692.85,0.00012895,2]
[326853833,1715514634128,-6692.85,0.00012895,3]
[326853834,1715514634137,-4131.31,0.00012895,2]
[326853835,1715514634145,-4131.31,0.00012895,3]
[326853836,1715514634154,-500.0,0.00012895,2]
[326853837,1715514634163,-500.0,0.00012895,2]
[326853838,1715514634172,-559.68,0.00012895,2]
[326853839,1715514634181,-500.0,0.00012895,2]
[326853840,1715514634190,-559.68,0.00012895,3]
[326853841,1715514634199,-500.0,0.00012895,2]
[326853842,1715514634208,-3710.39,0.00012895,2]
[326853843,1715514634217,-3710.39,0.00012895,3]
[326853844,1715514634226,-1875.53,0.00012895,2]
[326853845,1715514634235,-1875.53,0.00012895,2]
[326853846,1715514634243,-1469.43,0.00012895,2]
[326853847,1715514634252,-1469.43,0.00012895,3]
[326853848,1715514634261,-500.0,0.00012895,2]
[326853849,1715514634269,-500.0,0.00012895,2]
[326853850,1715514634278,-14069.93,0.00012895,2]
[326853851,1715514634287,-14069.93,0.00012895,3]
[326853852,1715514634295,-1246.72,0.00012895,2]
[326853853,1715514634304,-1246.72,0.00012895,3]
[326853854,1715514634313,-2349.05,0.00012895,2]
[326853855,1715514634322,-2349.05,0.00012895,3]
[326853856,1715514634331,-608.18483061,0.00012895,2]
[326853857,1715514634340,-160.94475633,0.00012896,2]
[326853858,1715514634349,-2557.06656262,0.00012896,2]
[326853859,1715514634362,-7078.66966081,0.00012896,2]
[326853860,1715514634370,-158.42386762,0.00012896,2]
[326853861,1715514634379,-156.38443489,0.00012896,2]
[326853862,1715514634388,-1258.44548734,0.00012896,2]
[326853863,1715514634397,-266.15160659,0.00012896,2]
[326853864,1715514634406,-155.43071651,0.00012896,2]
[326853865,1715514634415,-488.3397664,0.00012896,2]
[326853866,1715514634425,-525.53925572,0.00012896,2]
[326853867,1715514634434,-3400.0,0.00012896,2]
[326853868,1715514634443,-3005.88174248,0.00012896,2]
[326853869,1715514634452,-175.75116173,0.00012896,2]
[326853870,1715514634461,-157.45369274,0.00012896,2]
[326853871,1715514634470,-155.79798778,0.00012896,2]
[326853872,1715514634479,-246.25874054,0.00012896,2]
[326853873,1715514634487,-319.39260741,0.00012896,2]
[326853874,1715514634497,-210.46600037,0.00012896,2]
[326853875,1715514634506,-1254.98401423,0.00012896,2]
[326853876,1715514634515,-212.87445786,0.00012896,2]
[326853877,1715514634524,-402.78359363,0.00012896,2]
[326853878,1715514634533,-257.85125369,0.00012896,2]
[326853879,1715514634541,-10454.07635838,0.00012896,2]
[326853880,1715514634551,-159.26472553,0.00012896,2]
[326853881,1715514634560,-158.45591692,0.00012896,2]
[326853882,1715514634569,-155.0,0.00012896,2]
[326853883,1715514634577,-268.20527789,0.00012896,2]
[326853884,1715514634587,-306.03989459,0.00012896,2]
[326853885,1715514634595,-320.98051678,0.00012897,2]
[326853886,1715514634604,-4736.57913706,0.00012897,2]
[326853887,1715514634613,-275.05268019,0.00012897,2]
[326853888,1715514634621,-155.57858742,0.00012897,2]
[326853889,1715514634631,-662.93,0.00012897,4]
[326853890,1715514634640,-662.93,0.00012897,5]
[326853891,1715514634649,-662.93,0.00012897,6]
[326853892,1715514634658,-2795.59,0.00012897,4]
[326853893,1715514634671,-2795.59,0.00012897,5]
[326853894,1715514634680,-2795.59,0.00012897,6]
[326853895,1715514634689,-3205.22,0.00012897,4]
[326853896,1715514634698,-3205.22,0.00012897,5]
[326853897,1715514634707,-3205.22,0.00012897,6]
[326853898,1715514634715,-3113.48,0.00012897,4]
[326853899,1715514634724,-3113.48,0.00012897,5]
[326853900,1715514634733,-3113.48,0.00012897,6]
[326853901,1715514634742,-500.0,0.00012897,4]
[326853902,1715514634752,-500.0,0.00012897,5]
[326853903,1715514634761,-500.0,0.00012897,6]
[326853904,1715514634770,-500.0,0.00012897,4]
[326853905,1715514634779,-500.0,0.00012897,5]
[326853906,1715514634788,-8762.33,0.00012897,4]
[326853907,1715514634797,-500.0,0.00012897,6]
[326853908,1715514634806,-8762.33,0.00012897,5]
[326853909,1715514634815,-8762.33,0.00012897,6]
[326853910,1715514634824,-4440.83,0.00012897,4]
[326853911,1715514634833,-4440.83,0.00012897,5]
[326853912,1715514634842,-4440.83,0.00012897,6]
[326853913,1715514634851,-6008.3,0.00012897,4]
[326853914,1715514634861,-6008.3,0.00012897,5]
[326853915,1715514634869,-6008.3,0.00012897,6]
[326853916,1715514634878,-2324.64,0.00012897,4]
[326853917,1715514634887,-2324.64,0.00012897,5]
[326853918,1715514634896,-2324.64,0.00012897,6]
[326853919,1715514634905,-2694.38,0.00012897,4]
[326853920,1715514634914,-2694.38,0.00012897,5]
[326853921,1715514634923,-2694.38,0.00012897,6]
[326853922,1715514634932,-11575.48,0.00012897,4]
[326853923,1715514634941,-11575.48,0.00012897,5]
[326853924,1715514634950,-11575.48,0.00012897,6]
[326853925,1715514634959,-2140.04,0.00012897,4]
[326853926,1715514634968,-2140.04,0.00012897,5]
[326853927,1715514634977,-2140.04,0.00012897,6]
[326853928,1715514634986,-4725.88,0.00012897,4]
[326853929,1715514634996,-4725.88,0.00012897,5]
[326853930,1715514635005,-4725.88,0.00012897,6]
[326853931,1715514635014,-1259.64,0.00012897,4]
[326853932,1715514635022,-1259.64,0.00012897,5]
[326853933,1715514635297,-1259.64,0.00012897,6]
[326853934,1715514635306,-9552.49,0.00012897,4]
[326853935,1715514635315,-9552.49,0.00012897,5]
[326853936,1715514635324,-9552.49,0.00012897,6]
[326853937,1715514635333,-2449.73,0.00012897,4]
[326853938,1715514635342,-1263.71520177,0.00012897,5]
[326853939,1715514635369,-411.26103104,0.00012897,5]
[326853951,1715514638320,-155.0,0.000101,2]
[326853952,1715514638330,-7500.0,0.00012798,2]
[326853953,1715514638340,-330.90564352,0.00012845,2]
[326853954,1715514638350,-1192.85,0.00012895,2]
[326853955,1715514638361,-1192.85,0.00012895,3]
[326853956,1715514638372,-2262.42,0.00012895,2]
[326853957,1715514638382,-774.75376719,0.00012897,5]
[326853958,1715514638392,-2449.73,0.00012897,6]
[326853959,1715514638401,-5945.88,0.00012897,4]
[326853960,1715514638411,-5945.88,0.00012897,5]
[326853961,1715514638421,-5945.88,0.00012897,6]
[326853962,1715514638431,-6692.85,0.00012897,4]
[326853963,1715514638440,-6692.85,0.00012897,5]
[326853964,1715514638450,-6692.85,0.00012897,6]
[326853965,1715514638460,-4131.31,0.00012897,4]
[326853966,1715514638469,-4131.31,0.00012897,5]
[326853967,1715514638478,-4131.31,0.00012897,6]
[326853968,1715514638487,-500.0,0.00012897,2]
[326853969,1715514638496,-500.0,0.00012897,2]
[326853970,1715514638506,-500.0,0.00012897,2]
[326853971,1715514638516,-559.68,0.00012897,4]
[326853972,1715514638526,-559.68,0.00012897,5]
[326853973,1715514638535,-500.0,0.00012897,2]
[326853974,1715514638543,-559.68,0.00012897,6]
[326853975,1715514638553,-3710.39,0.00012897,4]
[326853976,1715514638562,-3710.39,0.00012897,5]
[326853977,1715514638571,-3710.39,0.00012897,6]
[326853978,1715514638579,-1875.53,0.00012897,2]
[326853979,1715514638588,-1875.53,0.00012897,2]
[326853980,1715514638596,-1875.53,0.00012897,2]
[326853981,1715514638605,-1469.43,0.00012897,4]
[326853982,1715514638614,-1469.43,0.00012897,5]
[326853983,1715514638623,-1469.43,0.00012897,6]
[326853984,1715514638632,-500.0,0.00012897,2]
[326853986,1715514638641,-500.0,0.00012897,2]
[326853987,1715514638650,-500.0,0.00012897,2]
[326853988,1715514638659,-14069.93,0.00012897,4]
[326853989,1715514638672,-14069.93,0.00012897,5]
[326853990,1715514638681,-14069.93,0.00012897,6]
[326853991,1715514638690,-1246.72,0.00012897,4]
[326853992,1715514638699,-1246.72,0.00012897,5]
[326853993,1715514638708,-1246.72,0.00012897,6]
[326853994,1715514638717,-2349.05,0.00012897,4]
[326853995,1715514638726,-2349.05,0.00012897,5]
[326853996,1715514638735,-2349.05,0.00012897,6]
[326853997,1715514638743,-225412.54821134,0.00012897,2]
[326853998,1715514638753,-1192.85,0.00012897,4]
[326853999,1715514638762,-565.90797363,0.00012898,2]
[326854000,1715514638771,-500.0,0.00012898,2]
[326854001,1715514638780,-500.0,0.00012898,3]
[326854002,1715514638789,-500.0,0.00012898,4]
[326854003,1715514638799,-500.0,0.00012898,5]
[326854004,1715514638809,-500.0,0.00012898,6]
[326854005,1715514638818,-500.0,0.00012898,2]
[326854006,1715514638827,-500.0,0.00012898,3]
[326854007,1715514638836,-500.0,0.00012898,4]
[326854008,1715514638846,-500.0,0.00012898,5]
[326854009,1715514638855,-500.0,0.00012898,6]
[326854010,1715514638864,-500.0,0.00012898,2]
[326854011,1715514638875,-500.0,0.00012898,3]
[326854012,1715514638885,-500.0,0.00012898,2]
[326854013,1715514638895,-500.0,0.00012898,3]
[326854014,1715514638904,-500.0,0.00012898,4]
[326854015,1715514638913,-500.0,0.00012898,4]
[326854016,1715514638922,-500.0,0.00012898,5]
[326854017,1715514638931,-539.19665152,0.00012898,5]
[326854018,1715514638941,-500.0,0.00012898,6]
[326854019,1715514638950,-500.0,0.00012898,2]
[326854020,1715514638959,-500.0,0.00012898,3]
[326854021,1715514638968,-500.0,0.00012898,4]
[326854022,1715514638977,-500.0,0.00012898,5]
[326854023,1715514638986,-500.0,0.00012898,6]
[326854024,1715514638995,-500.0,0.00012898,2]
[326854025,1715514639005,-500.0,0.00012898,3]
[326854026,1715514639014,-500.0,0.00012898,4]
[326854027,1715514639023,-500.0,0.00012898,5]
[326854028,1715514639032,-500.0,0.00012898,6]
[326854029,1715514639042,-504.0042565,0.00012898,2]
[326854030,1715514639051,-868.12,0.00012898,2]
[326854031,1715514639060,-868.12,0.00012898,3]
[326854032,1715514639069,-868.12,0.00012898,4]
[326854033,1715514639078,-868.12,0.00012898,5]
[326854034,1715514639087,-868.12,0.00012898,6]
[326854035,1715514639096,-500.0,0.00012898,2]
[326854036,1715514639105,-500.0,0.00012898,3]
[326854037,1715514639114,-500.0,0.00012898,4]
[326854038,1715514639124,-500.0,0.00012898,5]
[326854039,1715514639134,-500.0,0.00012898,6]
[326854040,1715514639143,-509.06492272,0.00012898,2]
[326854041,1715514639152,-1224.32,0.00012898,2]
[326854042,1715514639161,-1224.32,0.00012898,3]
[326854043,1715514639171,-1224.32,0.00012898,4]
[326854044,1715514639180,-1224.32,0.00012898,5]
[326854045,1715514639189,-1224.32,0.00012898,6]
[326854046,1715514639199,-509.38833419,0.00012898,2]
[326854047,1715514639208,-500.0,0.00012898,2]
[326854048,1715514639217,-500.0,0.00012898,3]
[326854049,1715514639226,-500.0,0.00012898,4]
[326854050,1715514639235,-500.0,0.00012898,5]
[326854051,1715514639243,-500.0,0.00012898,6]
[326854052,1715514639254,-1048.51,0.00012898,2]
[326854053,1715514639263,-1048.51,0.00012898,3]
[326854054,1715514639273,-1048.51,0.00012898,4]
[326854055,1715514639282,-1048.51,0.00012898,5]
[326854056,1715514639291,-1048.51,0.00012898,6]
[326854057,1715514639300,-538.8722828,0.00012898,2]
[326854058,1715514639309,-500.0,0.00012898,2]
[326854059,1715514639318,-500.0,0.00012898,3]
[326854060,1715514639327,-500.0,0.00012898,4]
[326854061,1715514639337,-500.0,0.00012898,5]
[326854062,1715514639346,-500.0,0.00012898,6]
[326854063,1715514639356,-877.6,0.00012898,2]
[326854064,1715514639365,-877.6,0.00012898,3]
[326854065,1715514639375,-877.6,0.00012898,4]
[326854066,1715514639384,-877.6,0.00012898,5]
[326854067,1715514639393,-500.0,0.00012898,2]
[326854068,1715514639402,-877.6,0.00012898,6]
[326854069,1715514639411,-500.0,0.00012898,3]
[326854070,1715514639421,-500.0,0.00012898,4]
[326854071,1715514639430,-500.0,0.00012898,5]
[326854072,1715514639440,-1577.62,0.00012898,2]
[326854073,1715514639449,-500.0,0.00012898,6]
[326854074,1715514639459,-1577.62,0.00012898,3]
[326854075,1715514639469,-1577.62,0.00012898,4]
[326854076,1715514639478,-1577.62,0.00012898,5]
[326854077,1715514639487,-1577.62,0.00012898,6]
[326854078,1715514639496,-500.0,0.00012898,2]
[326854079,1715514639505,-500.0,0.00012898,3]
[326854080,1715514639514,-500.0,0.00012898,4]
[326854081,1715514639523,-500.0,0.00012898,5]
[326854082,1715514639532,-500.0,0.00012898,6]
[326854083,1715514639541,-500.0,0.00012898,2]
[326854084,1715514639550,-241.83607815,0.00012898,3]
[326854085,1715514639559,-518.44408529,0.00012898,2]
[326854086,1715514639568,-500.0,0.00012898,2]
[326854087,1715514639578,-500.0,0.00012898,3]
[326854088,1715514639587,-500.0,0.00012898,4]
[326854089,1715514639597,-500.0,0.00012898,5]
[326854090,1715514639606,-517.3454825,0.00012898,2]
[326854091,1715514639615,-500.0,0.00012898,6]
[326854092,1715514639624,-500.0,0.00012898,2]
[326854093,1715514639633,-500.0,0.00012898,2]
[326854094,1715514639643,-500.0,0.00012898,3]
[326854095,1715514639652,-500.0,0.00012898,3]
[326854096,1715514639663,-500.0,0.00012898,4]
[326854097,1715514639674,-259.31251264,0.00012898,4]
[326854098,1715514639683,-500.0,0.00012898,5]
[326854099,1715514639692,-500.0,0.00012898,6]
[326854100,1715514639702,-500.0,0.00012898,2]
[326854101,1715514639713,-508.00798695,0.00012898,3]
[326854102,1715514639723,-500.0,0.00012898,2]
[326854103,1715514639732,-500.0,0.00012898,3]
[326854104,1715514639741,-521.71258454,0.00012898,4]
[326854105,1715514639754,-500.0,0.00012898,3]
[326854106,1715514639764,-500.0,0.00012898,4]
[326854107,1715514639773,-845.71,0.00012898,2]
[326854108,1715514639783,-500.0,0.00012898,5]
[326854109,1715514639792,-845.71,0.00012898,3]
[326854110,1715514639802,-845.71,0.00012898,4]
[326854111,1715514639811,-512.11,0.00012898,2]
[326854112,1715514639821,-500.0,0.00012898,6]
[326854113,1715514639830,-845.71,0.00012898,5]
[326854114,1715514639839,-512.11,0.00012898,3]
[326854115,1715514639849,-845.71,0.00012898,6]
[326854116,1715514639858,-512.11,0.00012898,4]
[326854117,1715514639868,-512.11,0.00012898,5]
[326854118,1715514639878,-512.11,0.00012898,6]
[326854119,1715514639887,-603.4,0.00012898,2]
[326854120,1715514639897,-603.4,0.00012898,3]
[326854121,1715514639906,-603.4,0.00012898,4]
[326854122,1715514639916,-500.0,0.00012898,2]
[326854123,1715514639925,-500.0,0.00012898,2]
[326854124,1715514639934,-500.0,0.00012898,2]
[326854125,1715514639944,-500.0,0.00012898,2]
[326854126,1715514639953,-500.0,0.00012898,2]
[326854127,1715514639963,-1063.11,0.00012898,2]
[326854128,1715514639972,-1063.11,0.00012898,3]
[326854129,1715514639982,-1063.11,0.00012898,4]
[326854130,1715514639991,-603.4,0.00012898,5]
[326854131,1715514640001,-1063.11,0.00012898,5]
[326854132,1715514640011,-1063.11,0.00012898,6]
[326854133,1715514640022,-603.4,0.00012898,6]
[326854134,1715514640031,-500.0,0.00012898,2]
[326854135,1715514640041,-500.0,0.00012898,3]
[326854136,1715514640051,-500.0,0.00012898,4]
[326854137,1715514640060,-500.0,0.00012898,5]
[326854138,1715514640070,-500.0,0.00012898,6]
[326854139,1715514640079,-500.0,0.00012898,2]
[326854141,1715514640352,-532.63855142,0.00012898,3]
[326854142,1715514640366,-500.0,0.00012898,2]
[326854143,1715514640376,-500.0,0.00012898,3]
[326854144,1715514640385,-500.0,0.00012898,4]
[326854145,1715514640395,-500.0,0.00012898,5]
[326854146,1715514640405,-500.0,0.00012898,6]
[326854147,1715514640414,-500.0,0.00012898,2]
[326854148,1715514640423,-500.0,0.00012898,3]
[326854149,1715514640433,-500.0,0.00012898,4]
[326854150,1715514640442,-500.0,0.00012898,5]
[326854151,1715514640452,-500.0,0.00012898,6]
[326854152,1715514640461,-785.14,0.00012898,2]
[326854153,1715514640470,-785.14,0.00012898,3]
[326854154,1715514640480,-785.14,0.00012898,4]
[326854155,1715514640489,-524.56888763,0.00012898,2]
[326854156,1715514640498,-540.84905695,0.00012898,2]
[326854157,1715514640508,-500.0,0.00012898,2]
[326854158,1715514640517,-3725.88,0.00012898,2]
[326854159,1715514640527,-500.0,0.00012898,3]
[326854160,1715514640536,-3725.88,0.00012898,3]
[326854161,1715514640545,-500.0,0.00012898,4]
[326854162,1715514640555,-3725.88,0.00012898,4]
[326854163,1715514640563,-500.0,0.00012898,5]
[326854164,1715514640573,-500.0,0.00012898,6]
[326854165,1715514640583,-541.27,0.00012898,2]
[326854166,1715514640591,-500.0,0.00012898,2]
[326854167,1715514640601,-541.27,0.00012898,3]
[326854168,1715514640610,-500.0,0.00012898,3]
[326854169,1715514640619,-541.27,0.00012898,4]
[326854170,1715514640628,-541.27,0.00012898,5]
[326854171,1715514640638,-500.0,0.00012898,4]
[326854172,1715514640647,-541.27,0.00012898,6]
[326854173,1715514640658,-500.0,0.00012898,5]
[326854174,1715514640671,-500.0,0.00012898,6]
[326854175,1715514640681,-528.78956627,0.00012898,2]
[326854176,1715514640690,-500.0,0.00012898,2]
[326854177,1715514640699,-500.0,0.00012898,3]
[326854178,1715514640708,-500.0,0.00012898,4]
[326854179,1715514640718,-500.0,0.00012898,5]
[326854180,1715514640727,-500.0,0.00012898,6]
[326854181,1715514640736,-500.0,0.00012898,2]
[326854182,1715514640746,-500.0,0.00012898,3]
[326854183,1715514640755,-399.96485748,0.00012898,4]
[326854184,1715514640765,-6425.0,0.00012898,2]
[326854185,1715514640774,-967.76,0.00012898,2]
[326854186,1715514640783,-6425.0,0.00012898,3]
[326854187,1715514640792,-967.76,0.00012898,3]
[326854188,1715514640801,-6425.0,0.00012898,4]
[326854189,1715514640811,-967.76,0.00012898,4]
[326854190,1715514640820,-618.14,0.00012898,2]
[326854191,1715514640830,-618.14,0.00012898,3]
[326854192,1715514640839,-618.14,0.00012898,4]
[326854193,1715514640849,-618.14,0.00012898,5]
[326854194,1715514640858,-618.14,0.00012898,6]
[326854195,1715514640867,-500.0,0.00012898,2]
[326854196,1715514640876,-500.0,0.00012898,3]
[326854197,1715514640886,-500.0,0.00012898,4]
[326854198,1715514640895,-500.0,0.00012898,5]
[326854199,1715514640904,-500.0,0.00012898,6]
[326854200,1715514640914,-527.98900621,0.00012898,2]